bitfinex-derivatives/quotes_ETHF0:USTF0_20241231
["timestamp","ask_amount","ask_price","bid_price","bid_amount"]
[1735685009408,0.8907,3345.0,3344.9,5.976]
[1735685009590,1.1902,3345.0,3344.9,5.976]
[1735685010795,5.1238323,3345.0,3344.9,5.976]
[1735685011988,1.63972203,3345.0,3344.9,5.976]
[1735685012895,5.87883157,3345.0,3344.9,5.976]
[1735685013827,1.63972203,3345.0,3344.9,5.976]
[1735685014501,1.63972203,3345.0,3344.9,18.24165455]
[1735685015095,1.1902,3345.0,3344.9,18.24165455]
[1735685016093,6.33109434,3345.0,3344.9,18.24165455]
[1735685016700,5.14089434,3345.0,3344.9,19.40127439]
[1735685016993,6.01616686,3345.5,3345.4,6.27547]
[1735685017688,6.01616686,3345.5,3345.4,6.70107]
[1735685017689,0.29947,3345.5,3345.4,6.70107]
[1735685019499,0.29947,3345.5,3345.4,10.97546783]
[1735685020701,0.29947,3345.5,3345.4,14.18326783]
[1735685020897,0.29947,3345.5,3345.4,18.89521739]
[1735685021102,0.29947,3345.5,3345.4,14.62081956]
[1735685021900,0.29947,3345.5,3345.4,15.4809294]
[1735685022106,2.64192796,3345.5,3345.4,15.4809294]
[1735685022607,2.64192796,3345.5,3345.4,12.2731294]
[1735685025004,0.29947,3345.5,3345.4,12.2731294]
[1735685028306,0.29947,3345.5,3345.4,7.56117984]
[1735685029710,0.29947,3345.5,3345.4,11.82982878]
[1735685031208,0.29947,3345.5,3345.4,7.56117984]
[1735685034105,0.29946,3345.6,3345.5,0.29945]
[1735685034616,0.29946,3345.6,3345.5,6.27545]
[1735685035315,2.34245796,3345.9,3345.5,5.976]
[1735685035510,0.29945,3345.7,3345.6,0.29944]
[1735685036008,0.29945,3345.7,3345.6,6.27544]
[1735685036412,2.34245796,3345.9,3345.8,0.29943]
[1735685036608,2.64186796,3346.1,3346.0,0.29941]
[1735685037118,2.64186796,3346.1,3346.0,6.27541]
[1735685038012,0.29941,3346.1,3346.0,6.27541]
[1735685040415,1.1942,3346.2,3346.1,0.2994]
[1735685040612,2.34245796,3346.4,3346.1,5.976]
[1735685040922,0.29939,3346.3,3346.2,0.29939]
[1735685041117,2.64183796,3346.4,3346.3,6.27539]
[1735685041319,2.64183796,3346.4,3346.2,6.27539]
[1735685041320,0.29939,3346.3,3346.2,6.27539]
[1735685041517,0.29939,3346.3,3346.2,0.29939]
[1735685042821,0.29939,3346.3,3346.2,6.27539]
[1735685043912,3.2025678,3346.5,3345.8,3.2078]
[1735685044118,3.2025678,3346.5,3345.9,5.5746]
[1735685044119,0.86010984,3346.0,3345.9,5.5746]
[1735685044421,0.86010984,3346.0,3345.6,4.70501215]
[1735685044422,0.29944,3345.7,3345.6,4.70501215]
[1735685044618,1.15954984,3345.7,3345.6,4.70501215]
[1735685044817,1.15954984,3345.7,3345.6,3.30321215]
[1735685045014,0.29946,3345.5,3345.4,3.30321215]
[1735685045217,1.15956984,3345.5,3345.4,3.30321215]
[1735685045917,1.15956984,3345.5,3345.4,1.20051215]
[1735685046122,0.29946,3345.5,3345.4,1.19951215]
[1735685046619,0.2995,3345.0,3344.9,0.29951]
[1735685047132,0.2995,3345.0,3344.9,5.87411]
[1735685048122,2.33566434,3345.1,3344.8,0.29951]
[1735685048123,0.29952,3344.9,3344.8,0.29951]
[1735685048325,0.29952,3344.9,3344.8,5.87411]
[1735685048915,0.29952,3344.9,3344.8,5.5746]
[1735685049219,0.29952,3344.9,3344.8,5.87412]
[1735685049822,0.29952,3344.9,3344.8,5.5746]
[1735685052527,2.63518434,3344.9,3344.8,5.5746]
[1735685055225,0.29952,3344.9,3344.8,5.5746]
[1735685056326,2.63518434,3344.9,3344.8,5.5746]
[1735685057023,0.29952,3344.8,3344.7,0.29953]
[1735685063025,0.29952,3344.8,3344.7,0.72543]
[1735685067027,0.29956,3344.4,3344.3,0.29956]
[1735685067223,0.29957,3344.3,3344.2,0.29956]
[1735685067619,0.29957,3344.3,3344.2,5.87416]
[1735685072026,0.29957,3344.3,3344.2,5.5746]
[1735685073527,4.06809498,3344.4,3343.9,1.1543]
[1735685073733,1.15986498,3344.2,3344.1,5.5746]
[1735685074930,1.15986498,3344.2,3344.1,5.5328]
[1735685075130,1.15986498,3344.2,3343.0,0.29968]
[1735685075131,0.29968,3343.1,3343.0,0.29968]
[1735685075426,0.29968,3343.1,3343.0,0.4316]
[1735685075630,0.29968,3343.1,3343.0,4.9024]
[1735685076127,1.15997498,3343.1,3343.0,4.9024]
[1735685076630,0.29968,3343.1,3343.0,4.9024]
[1735685076832,3.2078,3343.4,3343.0,4.9024]
[1735685077032,2.33566434,3343.7,3343.6,0.29963]
[1735685077331,1.63466434,3343.9,3343.8,0.29961]
[1735685077834,1.63466434,3343.9,3343.8,4.77041]
[1735685078037,2.49495932,3343.9,3343.8,4.77041]
[1735685078233,1.63466434,3343.9,3343.8,0.29961]
[1735685078734,0.2996,3344.0,3343.9,0.2996]
[1735685078926,4.26423659,3344.7,3343.9,4.9262]
[1735685078927,0.19714085,3344.5,3343.9,4.9262]
[1735685079129,3.81492659,3344.7,3344.6,0.29954]
[1735685079327,3.81492659,3344.7,3344.6,4.77034]
[1735685079733,0.29953,3344.7,3344.6,4.77034]
[1735685081834,0.29953,3344.8,3344.7,0.29952]
[1735685082133,5.02629398,3345.3,3344.9,4.4708]
[1735685082330,3.51539659,3345.4,3345.2,4.4708]
[1735685082531,3.51539659,3345.4,3345.3,5.23348]
[1735685082532,0.71299659,3345.4,3345.3,5.23348]
[1735685082838,4.67132869,3345.8,3345.7,0.29944]
[1735685083044,4.67132869,3345.8,3345.7,4.77024]
[1735685084230,9.29210044,3346.3,3345.7,4.4708]
[1735685084231,2.27319398,3346.3,3345.7,4.4708]
[1735685084439,0.2994,3346.2,3346.0,0.29941]
[1735685084934,0.2994,3346.2,3346.1,4.4708]
[1735685089441,2.27319398,3346.3,3345.5,0.434]
[1735685089745,2.57258398,3346.3,3346.2,4.4708]
[1735685103048,0.75409,3346.3,3346.2,4.4708]
[1735685104945,0.4547,3346.3,3345.7,3.2078]
[1735685105153,1.81849398,3346.0,3345.2,3.2078]
[1735685105342,5.02629398,3345.7,3344.9,4.4708]
[1735685105549,0.29948,3345.3,3345.2,0.29948]
[1735685114852,0.29951,3345.1,3344.7,3.2078]
[1735685115052,0.9141,3345.0,3344.2,3.95674]
[1735685115254,0.29954,3344.7,3344.6,0.29953]
[1735685118764,4.5595,3345.0,3344.5,0.29954]
[1735685118765,0.29954,3344.6,3344.5,0.29954]
[1735685126172,3.671,3345.0,3344.5,4.4708]
[1735685126376,0.29952,3344.9,3344.8,0.29951]
[1735685126875,0.29952,3344.9,3344.8,4.77031]
[1735685127277,3.671,3345.0,3344.8,4.4708]
[1735685127482,3.2078,3345.0,3344.9,4.77031]
[1735685127683,0.2995,3345.1,3345.0,0.2995]
[1735685127885,0.2995,3345.1,3345.0,4.7703]
[1735685137885,0.41374425,3345.5,3345.0,4.7703]
[1735685137886,5.84816675,3345.9,3345.6,0.29945]
[1735685138091,0.20052869,3345.7,3345.6,0.29945]
[1735685139490,3.50724,3345.8,3345.7,0.29944]
[1735685140085,0.29946,3345.5,3345.4,0.74876]
[1735685140286,0.29945,3345.6,3345.5,0.29945]
[1735685140790,0.29944,3345.7,3345.6,0.29944]
[1735685141810,0.74853,3346.1,3345.5,0.29945]
[1735685141811,0.29945,3345.6,3345.5,0.29945]
[1735685145697,0.4444,3345.9,3345.4,0.4493]
[1735685145894,0.29944,3345.8,3345.7,0.29943]
[1735685149701,0.29944,3345.8,3345.4,0.4493]
[1735685150000,0.29944,3345.8,3345.6,0.29945]
[1735685150189,0.29944,3345.8,3345.4,0.4493]
[1735685150394,0.29944,3345.8,3345.7,0.29944]
[1735685150996,0.4444,3345.9,3345.8,0.29943]
[1735685150997,0.29943,3345.9,3345.8,0.29943]
[1735685152098,3.50985313,3346.1,3345.5,0.74864]
[1735685152296,0.29942,3346.0,3345.9,0.29942]
[1735685153607,0.29942,3346.0,3345.5,0.74864]
[1735685153608,0.29945,3345.7,3345.6,0.29944]
[1735685153793,7.14055313,3346.2,3345.3,3.2078]
[1735685153999,0.29944,3345.8,3345.7,0.29943]
[1735685155410,0.29942,3346.0,3345.9,0.29941]
[1735685157804,0.29942,3346.0,3345.5,3.95644]
[1735685157805,0.29943,3345.9,3345.8,0.29942]
[1735685158399,0.29944,3345.8,3345.7,0.29943]
[1735685161004,0.29944,3345.8,3345.7,0.74373]
[1735685163504,0.29944,3345.8,3345.7,0.4443]
[1735685164515,0.29944,3345.8,3345.1,0.29949]
[1735685164516,0.29949,3345.2,3345.1,0.29949]
[1735685166008,1.60843589,3345.5,3345.0,3.632]
[1735685166309,6.71765313,3345.8,3345.2,0.29947]
[1735685166310,0.29949,3345.3,3345.2,0.29947]
[1735685178113,0.29947,3345.4,3345.3,0.29947]
[1735685178413,0.29949,3345.2,3345.1,0.29948]
[1735685181223,0.29949,3345.1,3345.0,5.00020735]
[1735685181414,0.74579,3345.1,3345.0,5.00020735]
[1735685182621,0.74579,3345.1,3345.0,0.29949]
[1735685184024,3.50985313,3345.2,3345.1,0.29949]
[1735685185726,0.74448,3345.3,3345.2,0.29948]
[1735685190322,0.445,3345.3,3345.2,0.29948]
[1735685193330,0.74448,3345.3,3345.2,0.29948]
[1735685193633,0.445,3345.3,3345.2,0.29948]
[1735685193921,4.40435492,3345.3,3345.2,0.29948]
[1735685194128,4.70383492,3345.3,3345.2,0.29948]
[1735685194326,4.40435492,3345.3,3345.2,0.29948]
[1735685194527,3.95935492,3345.3,3345.2,0.29948]
[1735685195035,4.41625492,3345.3,3345.2,0.29948]
[1735685195629,0.4569,3345.3,3345.2,0.29948]
[1735685196430,3.80932313,3345.4,3345.3,0.29948]
[1735685197334,4.25879329,3345.4,3345.3,0.29948]
[1735685202234,4.81909918,3345.4,3345.1,4.70071735]
[1735685202432,0.29948,3345.2,3345.1,5.00020735]
[1735685202727,0.29948,3345.2,3345.1,4.70071735]
[1735685204330,4.25880329,3345.2,3345.1,0.29949]
[1735685208541,0.74895016,3345.2,3345.1,5.00020735]
[1735685210144,0.29948,3345.2,3345.1,5.00020735]
[1735685211647,0.74895016,3345.2,3345.1,9.45910381]
[1735685212856,5.43646463,3345.2,3345.1,5.00020735]
[1735685216755,0.74895016,3345.2,3345.1,0.29949]
[1735685216949,0.74895016,3345.2,3345.0,4.70071735]
[1735685217156,0.29949,3345.1,3345.0,5.00021735]
[1735685217459,0.29949,3345.1,3345.0,4.70071735]
[1735685217648,0.29949,3345.1,3345.0,5.00021735]
[1735685218455,5.45488597,3345.1,3345.0,5.00021735]
[1735685221154,5.91608597,3345.1,3345.0,5.00021735]
[1735685221355,1.21016016,3345.1,3345.0,5.00021735]
[1735685221862,0.44947016,3345.1,3345.0,5.00021735]
[1735685222157,5.99539392,3345.8,3345.1,0.2992]
[1735685222359,2.72155211,3345.8,3345.7,5.22679178]
[1735685222559,0.95601176,3345.8,3345.7,5.56201589]
[1735685222753,7.48907632,3345.9,3345.8,0.29943]
[1735685222953,6.17057632,3345.9,3345.8,0.29943]
[1735685223274,5.48468632,3345.9,3345.8,5.29943]
[1735685223457,5.48468632,3345.9,3345.8,0.29943]
[1735685223658,5.48468632,3345.9,3345.8,6.15920589]
[1735685224253,0.4472,3346.6,3345.8,22.49147439]
[1735685224454,5.43289581,3346.6,3346.5,0.29937]
[1735685225552,5.43289581,3346.6,3346.5,5.8432695]
[1735685226354,4.98569581,3346.6,3346.5,5.8432695]
[1735685228261,4.98569581,3346.6,3346.5,12.58978555]
[1735685228560,4.98569581,3346.6,3346.5,12.88915555]
[1735685231069,4.98569581,3346.6,3346.5,5.8432695]
[1735685232858,4.98569581,3346.6,3346.5,0.29937]
[1735685234567,2.29004974,3346.6,3346.5,0.29937]
[1735685234763,2.29004974,3346.6,3346.5,1.15914589]
[1735685235468,0.4542,3346.8,3346.7,0.29935]
[1735685235656,3.2078,3347.3,3346.7,0.85977589]
[1735685235965,3.2078,3347.3,3346.5,9.68929214]
[1735685235966,3.2078,3347.3,3347.2,0.29931]
[1735685236960,4.06757589,3347.3,3347.2,0.29931]
[1735685237363,4.97457589,3347.3,3347.2,0.29931]
[1735685239166,3.2078,3347.3,3347.2,0.29931]
[1735685242270,0.4435,3347.5,3347.4,0.29929]
[1735685269378,0.4435,3347.5,3347.4,5.90827054]
[1735685271988,0.4435,3347.5,3347.4,12.95415659]
[1735685273484,0.4435,3347.5,3347.4,5.90827054]
[1735685274687,0.4435,3347.5,3347.4,15.31734485]
[1735685275490,0.913,3347.7,3347.4,15.31734485]
[1735685275684,0.4249,3347.9,3347.6,4.81575589]
[1735685275893,0.8856,3348.0,3347.9,0.29924]
[1735685276385,3.52699995,3348.3,3347.9,0.74811]
[1735685276583,3.52699995,3348.3,3348.2,0.29922]
[1735685278191,0.878,3348.5,3348.2,12.66285219]
[1735685278393,0.878,3348.5,3348.4,0.2992]
[1735685279287,1.17719,3348.5,3348.4,0.2992]
[1735685279494,0.878,3348.5,3348.4,0.2992]
[1735685279889,0.878,3348.5,3348.4,5.00196416]
[1735685280292,1.17719,3348.5,3348.4,5.00196416]
[1735685280888,1.17719,3348.5,3348.4,0.2992]
[1735685283302,1.17719,3348.5,3348.4,5.00196416]
[1735685284296,1.17719,3348.5,3348.4,0.2992]
[1735685286095,0.878,3348.5,3348.3,4.70276416]
[1735685286403,0.85977589,3348.4,3348.2,6.35387165]
[1735685286703,0.29921,3348.3,3348.2,1.79503582]
[1735685286902,0.29924,3347.9,3347.8,9.40907431]
[1735685287106,4.36681589,3347.9,3347.8,9.40907431]
[1735685288502,4.36681589,3347.9,3347.5,0.29928]
[1735685288503,0.29927,3347.6,3347.5,0.29928]
[1735685289100,0.85977589,3347.7,3347.3,0.4296]
[1735685289326,0.29929,3347.4,3347.3,0.72889]
[1735685289700,0.29929,3347.4,3347.3,0.4296]
[1735685289907,0.29929,3347.4,3347.3,0.7289]
[1735685290105,0.29931,3347.2,3347.1,9.40907431]
[1735685290406,1.15908589,3347.2,3347.1,9.40907431]
[1735685290607,6.15908589,3347.2,3347.1,9.40907431]
[1735685291711,0.29936,3346.6,3346.5,0.4296]
[1735685291906,3.50716,3346.6,3346.5,0.4296]
[1735685292106,3.2078,3346.6,3346.3,9.70845431]
[1735685292411,0.29938,3346.4,3346.3,9.70845431]
[1735685293010,0.29938,3346.4,3346.3,0.29938]
[1735685294513,0.29939,3346.2,3346.1,0.4233]
[1735685303418,3.95621,3346.6,3346.1,0.7227]
[1735685303618,0.29939,3346.3,3346.2,0.29938]
[1735685304512,3.2078,3346.6,3346.1,0.4233]
[1735685304714,0.29938,3346.4,3346.3,0.29938]
[1735685320624,0.29939,3346.3,3346.2,0.29939]
[1735685335045,0.29939,3346.3,3346.2,5.64753175]
[1735685337947,0.29939,3346.3,3346.2,15.05660606]
[1735685340550,2.64630851,3346.3,3346.2,5.64753175]
[1735685344153,2.64630851,3346.3,3346.2,15.05660606]
[1735685345852,2.64630851,3346.3,3346.2,14.75721606]
[1735685346552,2.64630851,3346.3,3346.2,5.34814175]
[1735685346553,3.82638995,3346.3,3346.2,5.34814175]
[1735685347953,3.82638995,3346.3,3346.1,9.40907431]
[1735685347954,0.29942,3345.9,3345.8,7.07101413]
[1735685349353,7.59166026,3346.0,3345.8,5.35237937]
[1735685349551,0.29942,3345.9,3345.8,5.35237937]
[1735685350155,3.52441414,3346.0,3345.9,0.29942]
[1735685350456,4.69921885,3346.2,3345.9,0.85944612]
[1735685350654,4.69921885,3346.2,3346.1,1.15884612]
[1735685352357,3.2078,3346.4,3346.3,0.29939]
[1735685353861,3.2078,3346.4,3346.3,5.73801506]
[1735685354959,0.29937,3346.5,3346.4,0.29938]
[1735685356165,0.29937,3346.5,3346.4,12.80333954]
[1735685358460,5.85632608,3346.6,3346.5,0.29937]
[1735685359058,3.50716,3346.6,3346.5,0.29937]
[1735685360468,3.50716,3346.6,3346.5,5.73799506]
[1735685361459,3.50716,3346.6,3346.5,12.80332954]
[1735685367165,3.50716,3346.6,3346.5,5.73799506]
[1735685367360,0.29936,3346.6,3346.5,5.73799506]
[1735685368169,2.64852608,3346.7,3346.6,0.29936]
[1735685368369,2.34916608,3346.7,3346.5,5.43862506]
[1735685368668,3.50716,3346.6,3346.5,12.50395954]
[1735685370572,3.50716,3346.6,3346.5,12.80332954]
[1735685370767,3.50716,3346.6,3346.5,5.73799506]
[1735685372374,3.50716,3346.6,3346.5,5.43862506]
[1735685378080,3.2078,3346.6,3346.4,7.36470448]
[1735685378388,0.29937,3346.5,3346.4,7.36470448]
[1735685379286,0.29937,3346.5,3346.4,12.80136107]
[1735685388791,0.29937,3346.5,3346.4,5.73602659]
[1735685391698,0.29937,3346.5,3346.4,12.79887423]
[1735685394502,0.29937,3346.5,3346.4,5.73602659]
[1735685395404,3.50716,3346.6,3346.5,0.29937]
[1735685395793,5.85632608,3346.6,3346.5,0.29937]
[1735685396994,3.50716,3346.6,3346.5,26.03569314]
[1735685398507,3.50716,3346.6,3346.5,16.62661883]
[1735685400804,3.50716,3346.6,3346.5,16.32724883]
[1735685401004,3.50716,3346.6,3346.5,16.62661883]
[1735685401209,3.50716,3346.6,3346.5,26.05949253]
[1735685401399,3.50716,3346.6,3346.5,25.76012253]
[1735685403812,3.50716,3346.6,3346.5,14.86953029]
[1735685405011,8.20637885,3346.6,3346.5,5.43665659]
[1735685405909,9.06582497,3346.6,3346.5,5.43665659]
[1735685406411,0.29937,3346.5,3346.4,7.07398528]
[1735685407516,0.29937,3346.5,3346.4,12.51812454]
[1735685409111,3.50717,3346.5,3346.4,12.51812454]
[1735685409418,0.29937,3346.5,3346.4,12.51812454]
[1735685410030,3.50717,3346.5,3346.4,12.51812454]
[1735685410517,3.50717,3346.5,3346.4,5.44413926]
[1735685411822,3.50717,3346.5,3346.4,12.51812454]
[1735685413124,7.04249308,3346.5,3346.4,5.44413926]
[1735685415925,7.04249308,3346.5,3346.4,12.51812454]
[1735685417024,7.04249308,3346.5,3346.4,5.44413926]
[1735685420926,3.83469308,3346.5,3346.4,5.44413926]
[1735685421241,7.04249308,3346.5,3346.4,5.44413926]
[1735685422334,0.29938,3346.4,3346.3,4.70769516]
[1735685423532,2.65598685,3346.4,3346.3,12.50888552]
[1735685424730,3.83429609,3346.4,3346.3,12.50888552]
[1735685425825,0.29938,3346.4,3346.3,12.50888552]
[1735685428829,3.50718,3346.4,3346.3,12.50888552]
[1735685429936,5.86364247,3346.4,3346.3,12.50888552]
[1735685430435,2.65584247,3346.4,3346.3,12.50888552]
[1735685431340,0.29938,3346.4,3346.3,12.50888552]
[1735685434833,3.83429609,3346.4,3346.3,12.50888552]
[1735685435139,7.04209609,3346.4,3346.3,12.50888552]
[1735685435838,3.83429609,3346.4,3346.3,12.50888552]
[1735685436037,7.04209609,3346.4,3346.3,12.50888552]
[1735685439942,3.83429609,3346.4,3346.3,12.50888552]
[1735685440239,7.04209609,3346.4,3346.3,12.50888552]
[1735685446543,3.50718,3346.4,3346.3,12.50888552]
[1735685450045,3.50718,3346.4,3346.3,5.43490024]
[1735685451846,0.29938,3346.4,3346.3,5.43490024]
[1735685452145,3.50718,3346.4,3346.3,5.43490024]
[1735685452947,3.50718,3346.4,3346.3,12.49860649]
[1735685454548,3.50718,3346.4,3346.3,5.43490024]
[1735685455649,8.20639885,3346.4,3346.3,5.43490024]
[1735685456748,8.20639885,3346.4,3346.3,12.49822475]
[1735685458148,3.50718,3346.4,3346.3,12.49822475]
[1735685458550,3.98098,3346.4,3346.3,12.49822475]
[1735685459346,3.98098,3346.4,3346.3,4.70933711]
[1735685461955,8.98098,3346.4,3346.3,3.14933711]
[1735685462151,14.62438631,3346.4,3346.3,3.14933711]
[1735685462349,15.48383243,3346.4,3346.3,3.14933711]
[1735685463151,15.48383243,3346.4,3346.3,2.51185711]
[1735685463449,10.46854563,3346.4,3345.7,7.06332451]
[1735685463650,4.36667612,3345.8,3345.7,7.06332451]
[1735685464750,9.13972151,3345.8,3345.5,0.4695]
[1735685464947,1.15889612,3345.6,3345.5,0.4695]
[1735685465950,1.15889612,3345.6,3345.4,7.06332451]
[1735685465951,0.29946,3345.5,3345.4,7.06332451]
[1735685466169,0.2995,3345.0,3344.9,7.06332451]
[1735685466358,1.15894612,3345.0,3344.9,7.06332451]
[1735685467654,0.29953,3344.7,3344.6,0.4373]
[1735685467850,3.50733,3344.7,3344.6,0.4373]
[1735685479174,0.359,3344.6,3343.5,3.2078]
[1735685479505,0.29957,3344.2,3344.1,0.9044]
[1735685479794,0.29962,3343.7,3343.6,0.4751]
[1735685480088,1.15906612,3343.7,3343.6,1.4166]
[1735685480281,1.15906612,3343.7,3343.6,0.9374]
[1735685482364,2.33606612,3343.7,3343.6,0.9374]
[1735685484071,5.54386612,3343.7,3343.6,0.9374]
[1735685485486,0.29965,3343.4,3343.3,0.4792]
[1735685485785,1.15909612,3343.4,3343.3,0.4792]
[1735685486689,1.15909612,3343.4,3342.7,0.74111]
[1735685486690,0.74916,3343.3,3342.7,0.74111]
[1735685486883,0.29969,3342.9,3342.8,0.8834]
[1735685487494,0.29969,3343.0,3342.8,1.1831]
[1735685489967,4.06724612,3343.1,3342.8,0.8834]
[1735685490274,0.29968,3343.0,3342.8,0.8834]
[1735685490570,0.85944612,3342.9,3342.8,1.1831]
[1735685492067,1.15913612,3342.9,3342.8,0.8834]
[1735685497680,0.29969,3342.9,3342.8,0.4393]
[1735685498881,3.80719224,3343.0,3342.7,0.4414]
[1735685499075,1.15914612,3342.8,3342.7,0.4414]
[1735685499678,4.36694612,3342.8,3342.7,0.4414]
[1735685500776,0.29973,3342.5,3342.4,0.461]
[1735685500979,0.29973,3342.5,3342.4,0.92]
[1735685501281,1.15917612,3342.5,3342.4,0.92]
[1735685506896,0.29973,3342.5,3342.4,0.92]
[1735685507091,1.15912612,3343.0,3342.8,0.29969]
[1735685507386,1.15912612,3343.0,3342.9,0.9826]
[1735685507590,1.15912612,3343.0,3342.9,1.28229]
[1735685507787,4.06724612,3343.2,3342.9,1.28229]
[1735685507995,0.29968,3343.1,3343.0,0.4932]
[1735685516596,0.78128,3343.1,3343.0,0.4932]
[1735685517199,0.29972,3342.6,3342.5,0.95]
[1735685517501,0.29976,3342.1,3342.0,3.2078]
[1735685517800,1.15920612,3342.1,3342.0,0.496]
[1735685519007,1.15920612,3342.1,3342.0,1.4185]
[1735685520331,0.29976,3342.1,3342.0,1.4185]
[1735685521430,0.29976,3342.1,3342.0,0.9225]
[1735685522735,0.29976,3342.1,3342.0,0.4685]
[1735685525907,2.35173699,3342.2,3341.3,7.06332451]
[1735685526112,0.29981,3341.6,3341.4,0.29982]
[1735685526637,0.4815,3341.8,3341.3,8.44182451]
[1735685526913,0.29982,3341.6,3341.3,8.74165451]
[1735685527308,0.29982,3341.6,3341.3,1.67833]
[1735685528010,0.29982,3341.6,3341.2,10.27112451]
[1735685528011,3.2078,3341.5,3341.2,7.06332451]
[1735685528318,2.12042199,3341.3,3341.2,7.06332451]
[1735685529210,1.82059199,3341.3,3341.1,7.06332451]
[1735685529416,0.78304,3341.2,3341.1,7.06332451]
[1735685530512,0.29986,3341.0,3340.9,9.3875737]
[1735685530711,5.32825199,3341.0,3340.9,9.3875737]
[1735685531010,10.32825199,3341.0,3340.9,9.3875737]
[1735685531206,0.29995,3340.1,3339.8,3.2078]
[1735685531915,2.12053199,3340.2,3339.8,3.50777]
[1735685532110,3.2078,3340.1,3339.5,12.24974289]
[1735685532314,0.29998,3339.8,3339.5,12.24974289]
[1735685532839,0.29996,3339.9,3339.5,0.4884]
[1735685533311,3.2078,3340.1,3339.9,0.29996]
[1735685533509,3.2078,3340.1,3340.0,0.4778]
[1735685533911,0.29993,3340.3,3340.0,0.4778]
[1735685534114,0.29992,3340.4,3340.1,0.4574]
[1735685534316,0.29992,3340.4,3340.2,0.4732]
[1735685539313,0.29992,3340.4,3340.3,0.00205267]
[1735685539517,1.82059199,3340.5,3340.3,0.00205267]
[1735685539716,2.12050199,3340.5,3340.3,0.00205267]
[1735685541224,0.29991,3340.4,3340.3,0.00205267]
[1735685551428,0.32732258,3340.4,3340.3,0.00205267]
[1735685551929,0.33893216,3340.4,3340.3,0.00205267]
[1735685560037,0.29991,3340.5,3340.3,0.00205267]
[1735685560335,0.29991,3340.5,3340.3,0.30197267]
[1735685562234,0.29991,3340.5,3340.3,0.00205267]
[1735685562432,0.29991,3340.4,3340.3,0.00205267]
[1735685569134,0.33841,3340.4,3340.3,0.00205267]
[1735685570042,0.70751062,3340.4,3340.3,0.00205267]
[1735685570236,1.26368934,3340.4,3340.3,0.00205267]
[1735685570442,0.89458872,3340.4,3340.3,0.00205267]
[1735685570649,1.2639544,3340.4,3340.3,0.00205267]
[1735685571043,4.79369139,3340.4,3340.3,0.00205267]
[1735685572841,7.15542979,3340.4,3340.3,0.00205267]
[1735685573244,7.51442979,3340.4,3340.3,0.00205267]
[1735685574350,6.62829168,3340.4,3340.3,0.00205267]
[1735685577844,6.86532493,3340.4,3340.3,0.00205267]
[1735685579249,6.50632493,3340.4,3340.3,0.00205267]
[1735685579953,11.50632493,3340.4,3340.3,0.00205267]
[1735685580151,0.3,3339.5,3339.4,0.433]
[1735685580350,3.5078,3339.5,3339.4,0.433]
[1735685582945,0.30003,3339.1,3339.0,0.496]
[1735685583155,2.12062199,3339.1,3339.0,0.496]
[1735685585252,1.82059199,3339.1,3338.6,4.26263864]
[1735685585548,0.30008,3338.6,3338.1,11.76134289]
[1735685585755,1.82059199,3338.4,3338.3,4.71353193]
[1735685585955,2.12068199,3338.4,3338.3,3.68416072]
[1735685586560,3.94127398,3338.4,3338.3,3.68416072]
[1735685586750,8.94127398,3338.4,3338.3,3.68416072]
[1735685587053,9.9095937,3338.4,3338.3,1.31639072]
[1735685587253,9.9095937,3338.4,3337.5,0.434]
[1735685587254,0.30017,3337.6,3337.5,0.434]
[1735685587453,3.50797,3337.6,3337.5,0.434]
[1735685588149,3.2078,3337.6,3337.5,0.434]
[1735685588349,3.50797,3337.6,3337.5,0.434]
[1735685594657,0.30018,3337.4,3337.3,0.4616]
[1735685596954,2.12077199,3337.4,3337.3,0.4616]
[1735685599261,0.67777199,3337.4,3337.3,0.4616]
[1735685599465,1.12009199,3338.1,3337.3,8.6694]
[1735685599659,1.82059199,3338.4,3337.7,3.2078]
[1735685599865,0.30012,3338.2,3337.9,0.30013]
[1735685600467,0.30014,3338.0,3337.7,3.50795]
[1735685600671,1.82059199,3338.1,3337.2,3.2078]
[1735685600865,0.30019,3337.4,3337.2,3.508]
[1735685601266,0.30019,3337.4,3337.3,0.30019]
[1735685601767,0.30018,3337.5,3337.3,0.30019]
[1735685602661,0.30018,3337.5,3337.4,0.9338]
[1735685602865,0.30018,3337.5,3337.4,1.3699]
[1735685606375,0.30014,3337.9,3337.4,1.67008]
[1735685606676,2.57092199,3338.0,3337.4,1.67008]
[1735685606971,0.30017,3337.6,3337.4,1.3699]
[1735685608770,0.30017,3337.6,3337.4,0.9338]
[1735685609288,0.30015,3337.8,3337.4,1.23398]
[1735685609573,0.30015,3337.8,3337.4,0.9338]
[1735685609780,0.30015,3337.8,3337.5,0.30017]
[1735685609978,0.30015,3337.8,3337.6,0.4507]
[1735685610277,1.82059199,3338.0,3337.6,0.4507]
[1735685610479,0.30016,3337.8,3337.6,0.4507]
[1735685611378,0.30016,3337.7,3337.6,0.4507]
[1735685614080,2.12071199,3338.1,3337.8,0.30015]
[1735685614580,2.12071199,3338.1,3337.9,0.4453]
[1735685615885,1.82059199,3338.1,3337.9,0.4453]
[1735685616078,0.30013,3338.0,3337.9,0.4453]
[1735685620377,0.30013,3338.0,3337.9,0.74544]
[1735685621990,0.30013,3338.0,3337.9,0.4453]
[1735685622387,0.30013,3338.0,3337.9,0.74544]
[1735685623089,4.16358388,3338.8,3337.9,5.4453]
[1735685623386,4.16358388,3338.8,3338.4,3.2078]
[1735685623693,2.34299189,3338.8,3338.7,0.30007]
[1735685625093,0.30005,3339.0,3338.6,0.4524]
[1735685625393,0.30005,3339.0,3338.9,0.30005]
[1735685627695,2.12063199,3339.1,3339.0,0.30004]
[1735685629191,0.30004,3339.1,3339.0,0.30004]
[1735685629394,0.30004,3339.1,3338.9,0.30004]
[1735685630096,2.12063199,3339.1,3338.9,0.30004]
[1735685631501,0.4221,3339.3,3339.2,0.30002]
[1735685634900,1.82059199,3339.4,3339.3,0.30001]
[1735685635800,0.30002,3339.3,3339.2,0.30002]
[1735685635992,1.82059199,3339.4,3338.9,3.2078]
[1735685636197,0.30006,3338.8,3338.7,0.30006]